[Event "81st Tata Steel Tienkamp 2019"]
[Site "Wijk aan Zee"]
[Date "2019.01.18"]
[Round "1"]
[White "Beerdsen, Thomas"]
[Black "Vrolijk, Liam"]
[Result "1/2-1/2"]
[ECO "C24"]
[WhiteElo "2484"]
[BlackElo "2433"]
[Annotator "RC"]
[PlyCount "43"]
[EventDate "2019.01.12"]
[EventType "tourn"]
[EventCountry "NED"]
[SourceTitle "playchess.com"]
[Source "ChessBase"]
[SourceQuality "1"]
[TimeControl "40/6000+30:20/3000+30:900+30"]

1. e4 e5 2. Bc4 Nf6 3. d3 c6 4. Nf3 d5 5. Bb3 Bb4+ 6. Bd2 Bxd2+ 7. Qxd2 a5 8. a4 dxe4 9. Nxe5 O-O 10. Nc3 exd3 11. O-O-O Na6 12. Nxd3 Bg4 13. f3 Bf5 14. Qg5 Bxd3 15. Rxd3 Qc7 16. Ne4 Nxe4 17. fxe4 Rae8 18. Rf1 Kh8 19. Rh3 Qe7 20. Qh5 Qxe4 21. Qxa5 Re5 22. Qd2 {½-½} 1/2-1/2

[Event "81st Tata Steel Tienkamp 2019"]
[Site "Wijk aan Zee"]
[Date "2019.01.18"]
[Round "1"]
[White "Beukema, Stefan"]
[Black "Kevlishvili, Robby"]
[Result "0-1"]
[ECO "B81"]
[WhiteElo "2414"]
[BlackElo "2453"]
[Annotator "RC"]
[PlyCount "78"]
[EventDate "2019.01.12"]
[EventType "tourn"]
[EventCountry "NED"]
[SourceTitle "playchess.com"]
[Source "ChessBase"]
[SourceQuality "1"]
[TimeControl "40/6000+30:20/3000+30:900+30"]

1. e4 c5 2. Nf3 d6 3. d4 cxd4 4. Nxd4 Nf6 5. Nc3 a6 6. h3 e6 7. g4 h6 8. Bg2 Be7 9. O-O O-O 10. Be3 Nc6 11. a4 Nxd4 12. Qxd4 e5 13. Qb6 Qxb6 14. Bxb6 Be6 15. Rfd1 Rac8 16. Rd2 Rc6 17. Be3 Rfc8 18. Rc1 Rc4 19. Rd3 Nd7 20. Bf1 Nc5 21. Rdd1 Rxc3 22. bxc3 Nxa4 23. f3 Nxc3 24. Rd3 b5 25. Ra1 Na4 26. Rd2 Rc3 27. Ba7 Rxf3 28. c4 Rb3 29. cxb5 axb5 30. Bxb5 Rxb5 31. Rxa4 Rb3 32. Kg2 h5 33. Bf2 hxg4 34. Ra8+ Kh7 35. hxg4 Bxg4 36. Ra7 Bf3+ 37. Kh2 Bg5 38. Rxd6 Bf4+ 39. Bg3 Rb1 0-1

[Event "81st Tata Steel Tienkamp 2019"]
[Site "Wijk aan Zee"]
[Date "2019.01.18"]
[Round "1"]
[White "Kosakowski, Jakub"]
[Black "Rapport, Jovana"]
[Result "1/2-1/2"]
[ECO "C10"]
[WhiteElo "2404"]
[BlackElo "2375"]
[Annotator "RC"]
[PlyCount "115"]
[EventDate "2019.01.12"]
[EventType "tourn"]
[EventCountry "NED"]
[SourceTitle "playchess.com"]
[Source "ChessBase"]
[SourceQuality "1"]
[TimeControl "40/6000+30:20/3000+30:900+30"]

1. e4 e6 2. d4 d5 3. Nc3 dxe4 4. Nxe4 Bd7 5. Nf3 Bc6 6. Bd3 Nd7 7. O-O Ngf6 8. Ned2 Be7 9. c4 Bxf3 10. Nxf3 O-O 11. b3 c5 12. Bb2 cxd4 13. Nxd4 Qa5 14. a3 Rfd8 15. Bc2 Qh5 16. Qxh5 Nxh5 17. Rad1 g6 18. g3 Ng7 19. Be4 Nc5 20. Bf3 a5 21. b4 axb4 22. axb4 Ra2 23. bxc5 Rxb2 24. c6 bxc6 25. Nxc6 Re8 26. Nxe7+ Rxe7 27. c5 Rb8 28. c6 h5 29. Rd3 Kf8 30. Rfd1 Rc7 31. Kf1 Ne8 32. Rd7 Rbc8 33. Rb1 Nf6 34. Rxc7 Rxc7 35. Rb7 Ne8 36. Ke2 Ke7 37. Kd3 Kd8 38. Kd4 Nd6 39. Rb8+ Rc8 40. Rb1 Rc7 41. Kc5 Nc8 42. Rb7 Ne7 43. Kd6 Nf5+ 44. Ke5 Kc8 45. Be4 Ng7 46. h4 Ne8 47. Rb1 Ra7 48. Kf4 Nd6 49. Bf3 Ra5 50. Ke3 Ra3+ 51. Ke2 e5 52. Bd5 Ra5 53. Rd1 f6 54. Kf1 Kc7 55. Kg2 g5 56. hxg5 fxg5 57. Rd2 h4 58. gxh4 {½-½} 1/2-1/2

[Event "81st Tata Steel Tienkamp 2019"]
[Site "Wijk aan Zee"]
[Date "2019.01.18"]
[Round "1"]
[White "Mamedjarova, Zeinab"]
[Black "Martens, Martin"]
[Result "0-1"]
[ECO "A47"]
[WhiteElo "2311"]
[BlackElo "2382"]
[Annotator "RC"]
[PlyCount "74"]
[EventDate "2019.01.12"]
[EventType "tourn"]
[EventCountry "NED"]
[SourceTitle "playchess.com"]
[Source "ChessBase"]
[SourceQuality "1"]
[TimeControl "40/6000+30:20/3000+30:900+30"]

1. d4 Nf6 2. Nf3 e6 3. e3 b6 4. Bd3 Bb7 5. Nbd2 g6 6. e4 d5 7. exd5 Bxd5 8. a4 Bg7 9. a5 O-O 10. O-O Nc6 11. axb6 axb6 12. Rxa8 Qxa8 13. c4 Bxf3 14. Nxf3 Rd8 15. Be3 Ne8 16. Bg5 Rd7 17. Qa1 Qxa1 18. Rxa1 Nxd4 19. Ra8 Kf8 20. Nxd4 Bxd4 21. Bc2 f6 22. Ba4 Re7 23. Bh6+ Kf7 24. b3 g5 25. Rd8 Bc5 26. g4 Bd6 27. Bc6 Ng7 28. Be4 f5 29. gxf5 exf5 30. Bd3 Ne6 31. Rc8 Kg6 32. Bxg5 Kxg5 33. h3 Kf4 34. Kf1 Ng5 35. h4 Nf3 36. Be2 Nd2+ 37. Ke1 Nxb3 0-1

[Event "81st Tata Steel Tienkamp 2019"]
[Site "Wijk aan Zee"]
[Date "2019.01.19"]
[Round "2"]
[White "Kevlishvili, Robby"]
[Black "Mamedjarova, Zeinab"]
[Result "1-0"]
[ECO "C42"]
[WhiteElo "2453"]
[BlackElo "2311"]
[Annotator "RC"]
[PlyCount "73"]
[EventDate "2019.01.12"]
[EventType "tourn"]
[EventCountry "NED"]
[SourceTitle "playchess.com"]
[Source "ChessBase"]
[SourceQuality "1"]
[TimeControl "40/6000+30:20/3000+30:900+30"]

1. e4 e5 2. Nf3 Nf6 3. Nxe5 d6 4. Nf3 Nxe4 5. c4 Be7 6. d4 O-O 7. Bd3 d5 8. O-O Nf6 9. Nc3 Nc6 10. cxd5 Nxd5 11. Re1 h6 12. Nxd5 Qxd5 13. Be4 Qd6 14. d5 Nb4 15. a3 f5 16. Bb1 Nxd5 17. Ba2 c6 18. Bf4 Qd8 19. Bxd5+ cxd5 20. Rc1 Bf6 21. Bc7 Qd7 22. Ne5 Bxe5 23. Bxe5 Rf7 24. Rc7 Qe8 25. Bxg7 Be6 26. Rxf7 Qxf7 27. Bxh6 Qf6 28. Bf4 Bf7 29. Be5 Qb6 30. Bd4 Qc6 31. Re3 Re8 32. Rg3+ Bg6 33. h4 f4 34. Rg5 Kf7 35. h5 Be4 36. Rg7+ Kf8 37. Qg4 1-0

[Event "81st Tata Steel Tienkamp 2019"]
[Site "Wijk aan Zee"]
[Date "2019.01.19"]
[Round "2"]
[White "Martens, Martin"]
[Black "Beerdsen, Thomas"]
[Result "0-1"]
[ECO "B22"]
[WhiteElo "2382"]
[BlackElo "2484"]
[Annotator "RC"]
[PlyCount "62"]
[EventDate "2019.01.12"]
[EventType "tourn"]
[EventCountry "NED"]
[SourceTitle "playchess.com"]
[Source "ChessBase"]
[SourceQuality "1"]
[TimeControl "40/6000+30:20/3000+30:900+30"]

1. e4 c5 2. c3 Nf6 3. e5 Nd5 4. g3 d6 5. exd6 Qxd6 6. Bg2 Nc6 7. Nf3 Bf5 8. O-O Bd3 9. Re1 O-O-O 10. Na3 e5 11. b3 f6 12. Nc4 Qd7 13. Nb2 Bf5 14. Nh4 Be6 15. c4 Nc7 16. d3 g5 17. Nf3 Bh3 18. Be3 h5 19. Qe2 Bxg2 20. Kxg2 h4 21. Kg1 Ne6 22. Red1 g4 23. Ne1 Ncd4 24. Qf1 f5 25. Na4 f4 26. Bxd4 exd4 27. Rd2 f3 28. Nc2 Bh6 29. Rad1 hxg3 30. fxg3 Be3+ 31. Kh1 Rh3 0-1

[Event "81st Tata Steel Tienkamp 2019"]
[Site "Wijk aan Zee"]
[Date "2019.01.20"]
[Round "3"]
[White "Beerdsen, Thomas"]
[Black "Kevlishvili, Robby"]
[Result "1/2-1/2"]
[ECO "B56"]
[WhiteElo "2484"]
[BlackElo "2453"]
[Annotator "ChessBase"]
[PlyCount "48"]
[EventDate "2019.01.12"]
[EventType "tourn"]
[EventCountry "NED"]
[SourceTitle "playchess.com"]
[Source "ChessBase"]
[SourceQuality "1"]
[TimeControl "40/6000+30:20/3000+30:900+30"]

1. e4 {[%emt 0:00:00]} c5 {[%emt 0:07:55]} 2. Nf3 {[%emt 0:00:00]} d6 {[%emt 0:00:05]} 3. d4 {[%emt 0:00:00]} cxd4 {[%emt 0:00:06]} 4. Nxd4 {[%emt 0:00:00]} Nf6 {[%emt 0:00:06]} 5. Nc3 {[%emt 0:00:00]} Bd7 {[%emt 0:05:29]} 6. Bc4 {[%emt 0:03:47]} Nc6 {[%emt 0:00:58]} 7. a3 {[%emt 0:01:31]} g6 {[%emt 0:01:20]} 8. h3 {[%emt 0:05:00]} Bg7 {[%emt 0:00:51]} 9. Be3 {[%emt 0:01:39]} Rc8 {[%emt 0:02:26]} 10. Ba2 {[%emt 0:09:20]} O-O {[%emt 0:03:44]} 11. Nf3 {[%emt 0:04:14]} Na5 {[%emt 0:06:36]} 12. Qd3 {[%emt 0:09:35]} b5 {[%emt 0:02:40]} 13. Nd2 {[%emt 0:14:23]} a6 {[%emt 0:05:16]} 14. O-O {[%emt 0:02:08]} Nb7 {[%emt 0:03:35]} 15. Rad1 {[%emt 0:04:44]} Nc5 {[%emt 0:01:51]} 16. Qe2 {[%emt 0:01:11]} Qc7 {[%emt 0:09:25]} 17. Rfe1 {[%emt 0:04:05]} Qb7 {[%emt 0:02:22]} 18. Bd4 {[%emt 0:13:53]} Bc6 {[%emt 0:08:34]} 19. Qe3 {[%emt 0:07:02]} Ne6 {[%emt 0:07:52]} 20. Nb3 {[%emt 0:03:44]} Nxd4 {[%emt 0:03:16]} 21. Nxd4 {[%emt 0:01:03]} Bd7 {[%emt 0:02:44]} 22. Nf3 {[%emt 0:01:54]} Bc6 {[%emt 0:08:54]} 23. Nd4 {[%emt 0:00:08]} Bd7 {[%emt 0:06:32]} 24. Nf3 {[%emt 0:00:08]} Bc6 {[%emt 0:00:23]} 1/2-1/2

[Event "81st Tata Steel Tienkamp 2019"]
[Site "Wijk aan Zee"]
[Date "2019.01.20"]
[Round "3"]
[White "Vrolijk, Liam"]
[Black "Martens, Martin"]
[Result "1-0"]
[ECO "B39"]
[WhiteElo "2433"]
[BlackElo "2382"]
[Annotator "ChessBase"]
[PlyCount "83"]
[EventDate "2019.01.12"]
[EventType "tourn"]
[EventCountry "NED"]
[SourceTitle "playchess.com"]
[Source "ChessBase"]
[SourceQuality "1"]
[TimeControl "40/6000+30:20/3000+30:900+30"]

1. e4 {[%emt 0:00:00]} c5 {[%emt 0:00:00]} 2. Nf3 {[%emt 0:00:00]} g6 {[%emt 0:00:05]} 3. d4 {[%emt 0:00:00]} cxd4 {[%emt 0:00:09]} 4. Nxd4 {[%emt 0:00:08]} Bg7 {[%emt 0:00:34]} 5. c4 {[%emt 0:00:16]} Nc6 {[%emt 0:00:20]} 6. Be3 {[%emt 0:00:13]} Nf6 {[%emt 0:00:15]} 7. Nc3 {[%emt 0:00:11]} Ng4 {[%emt 0:00:15]} 8. Qxg4 {[%emt 0:00:09]} Nxd4 {[%emt 0:00:08]} 9. Qd1 {[%emt 0:00:09]} e5 {[%emt 0:00:10]} 10. Bd3 {[%emt 0:00:34]} d6 {[%emt 0:00:14]} 11. O-O {[%emt 0:01:34]} O-O {[%emt 0:00:11]} 12. Qd2 {[%emt 0:03:04]} Be6 {[%emt 0:02:04]} 13. Rac1 {[%emt 0:03:36]} Rc8 {[%emt 0:04:59]} 14. b3 {[%emt 0:01:47]} a6 {[%emt 0:11:48]} 15. Ne2 {[%emt 0:14:28]} Nxe2+ {[%emt 0:10:27]} 16. Bxe2 {[%emt 0:01:32]} Qe7 {[%emt 0:07:51]} 17. Rfd1 {[%emt 0:09:33]} Rfd8 {[%emt 0:03:32]} 18. a4 {[%emt 0:07:45]} Rd7 {[%emt 0:06:21]} 19. Rc3 {[%emt 0:07:09]} f5 {[%emt 0:14:08]} 20. f3 {[%emt 0:03:56]} Bf8 {[%emt 0:03:25]} 21. Rd3 {[%emt 0:13:33]} Rdc7 {[%emt 0:02:35]} 22. Bb6 {[%emt 0:09:24]} Rc6 {[%emt 0:01:00]} 23. a5 {[%emt 0:00:10]} Qh4 {[%emt 0:05:16]} 24. Bf2 {[%emt 0:02:25]} Qf6 {[%emt 0:00:39]} 25. Rc3 {[%emt 0:01:34]} f4 {[%emt 0:02:50]} 26. Rdc1 {[%emt 0:04:19]} Qf7 {[%emt 0:03:30]} 27. Qd3 {[%emt 0:03:11]} R6c7 {[%emt 0:08:14]} 28. b4 {[%emt 0:02:16]} g5 {[%emt 0:00:15]} 29. b5 {[%emt 0:03:31]} h5 {[%emt 0:01:22]} 30. Bb6 {[%emt 0:04:19]} Rd7 {[%emt 0:00:59]} 31. bxa6 {[%emt 0:00:22]} bxa6 {[%emt 0:00:08]} 32. c5 {[%emt 0:00:18]} dxc5 {[%emt 0:01:49]} 33. Qxa6 {[%emt 0:00:07]} Rd2 {[%emt 0:07:12]} 34. Bc4 {[%emt 0:04:13]} Rc6 {[%emt 0:01:59]} 35. Qb5 {[%emt 0:02:29]} Rcd6 {[%emt 0:07:55]} 36. Bf1 {[%emt 0:00:55]} g4 {[%emt 0:03:22]} 37. Bxc5 {[%emt 0:01:06]} gxf3 {[%emt 0:00:28]} 38. Rxf3 {[%emt 0:01:10]} Qc7 {[%emt 0:01:49]} 39. Bxd6 {[%emt 0:02:09]} Qxd6 {[%emt 0:00:27]} 40. Rd3 {[%emt 0:00:47]} Rxd3 {[%emt 0:00:28]} 41. Qxd3 {[%emt 0:50:18]} Qb4 {[%emt 0:11:08]} 42. Qc3 {[%emt 0:00:00]} 1-0

[Event "81st Tata Steel Tienkamp 2019"]
[Site "Wijk aan Zee"]
[Date "2019.01.20"]
[Round "3"]
[White "Beukema, Stefan"]
[Black "Warmerdam, Max"]
[Result "0-1"]
[ECO "A03"]
[WhiteElo "2414"]
[BlackElo "2440"]
[Annotator "ChessBase"]
[PlyCount "98"]
[EventDate "2019.01.12"]
[EventType "tourn"]
[EventCountry "NED"]
[SourceTitle "playchess.com"]
[Source "ChessBase"]
[SourceQuality "1"]
[TimeControl "40/6000+30:20/3000+30:900+30"]

1. f4 {[%emt 0:00:00]} d5 {[%emt 0:00:00]} 2. Nf3 {[%emt 0:00:00]} Nf6 {[%emt 0:00:00]} 3. g3 {[%emt 0:00:32]} g6 {[%emt 0:00:06]} 4. Bg2 {[%emt 0:00:06]} Bg7 {[%emt 0:00:04]} 5. O-O {[%emt 0:00:06]} O-O {[%emt 0:00:12]} 6. d3 {[%emt 0:00:05]} c5 {[%emt 0:00:04]} 7. Qe1 {[%emt 0:02:39]} Nc6 {[%emt 0:00:18]} 8. c3 {[%emt 0:01:04]} d4 {[%emt 0:00:19]} 9. Na3 {[%emt 0:02:50]} Rb8 {[%emt 0:00:20]} 10. Bd2 {[%emt 0:05:15]} b6 {[%emt 0:01:26]} 11. c4 {[%emt 0:02:43]} a6 {[%emt 0:08:18]} 12. Rc1 {[%emt 0:15:01]} Qd6 {[%emt 0:00:58]} 13. h3 {[%emt 0:02:47]} Nh5 {[%emt 0:01:01]} 14. Ng5 {[%emt 0:07:47]} f5 {[%emt 0:02:05]} 15. Nc2 {[%emt 0:10:29]} h6 {[%emt 0:11:56]} 16. Nf3 {[%emt 0:00:09]} e5 {[%emt 0:00:34]} 17. fxe5 {[%emt 0:03:52]} Nxe5 {[%emt 0:03:20]} 18. Nxe5 {[%emt 0:07:09]} Bxe5 {[%emt 0:08:23]} 19. Bxh6 {[%emt 0:00:06]} Bxg3 {[%emt 0:00:24]} 20. Bxf8 {[%emt 0:01:58]} Kxf8 {[%emt 0:01:02]} 21. Qd1 {[%emt 0:03:05]} Bh2+ {[%emt 0:04:27]} 22. Kh1 {[%emt 0:00:07]} Ng3+ {[%emt 0:00:03]} 23. Kxh2 {[%emt 0:00:04]} Nxf1+ {[%emt 0:00:09]} 24. Kg1 {[%emt 0:00:10]} Ng3 {[%emt 0:00:56]} 25. e3 {[%emt 0:04:02]} dxe3 {[%emt 0:19:54]} 26. Nxe3 {[%emt 0:00:06]} Qf4 {[%emt 0:03:06]} 27. Qf3 {[%emt 0:02:18]} Bb7 {[%emt 0:00:08]} 28. Qf2 {[%emt 0:00:46]} Bxg2 {[%emt 0:07:16]} 29. Kxg2 {[%emt 0:00:19]} Nh5 {[%emt 0:00:20]} 30. Rf1 {[%emt 0:01:19]} Qxf2+ {[%emt 0:10:49]} 31. Rxf2 {[%emt 0:00:42]} Kf7 {[%emt 0:00:30]} 32. Nd5 {[%emt 0:05:10]} Nf6 {[%emt 0:00:52]} 33. Re2 {[%emt 0:00:37]} Nxd5 {[%emt 0:01:34]} 34. cxd5 {[%emt 0:00:05]} Re8 {[%emt 0:01:23]} 35. Rc2 {[%emt 0:13:16]} Re5 {[%emt 0:04:50]} 36. d4 {[%emt 0:00:44]} cxd4 {[%emt 0:01:25]} 37. Kf2 {[%emt 0:01:14]} d3 {[%emt 0:00:35]} 38. Rc3 {[%emt 0:00:31]} Rxd5 {[%emt 0:00:08]} 39. Ke1 {[%emt 0:00:36]} d2+ {[%emt 0:01:36]} 40. Kd1 {[%emt 0:00:02]} Rd6 {[%emt 0:00:05]} 41. b4 {[%emt 0:51:08]} b5 {[%emt 0:50:44]} 42. h4 {[%emt 0:01:46]} Kg7 {[%emt 0:00:16]} 43. Rc7+ {[%emt 0:01:57]} Kh6 {[%emt 0:00:11]} 44. Rf7 {[%emt 0:00:06]} Kh5 {[%emt 0:00:05]} 45. Rh7+ {[%emt 0:00:04]} Kg4 {[%emt 0:00:09]} 46. Rh6 {[%emt 0:00:04]} f4 {[%emt 0:00:49]} 47. h5 {[%emt 0:00:10]} f3 {[%emt 0:00:48]} 48. hxg6 {[%emt 0:00:12]} f2 {[%emt 0:00:09]} 49. Rh1 {[%emt 0:00:07]} Rxg6 {[%emt 0:00:07]} 0-1

[Event "81st Tata Steel Tienkamp 2019"]
[Site "Wijk aan Zee"]
[Date "2019.01.20"]
[Round "3"]
[White "Kosakowski, Jakub"]
[Black "Brink, Barry"]
[Result "1/2-1/2"]
[ECO "B47"]
[WhiteElo "2404"]
[BlackElo "2385"]
[Annotator "ChessBase"]
[PlyCount "43"]
[EventDate "2019.01.12"]
[EventType "tourn"]
[EventCountry "NED"]
[SourceTitle "playchess.com"]
[Source "ChessBase"]
[SourceQuality "1"]
[TimeControl "40/6000+30:20/3000+30:900+30"]

1. e4 {[%emt 0:00:00]} c5 {[%emt 0:00:00]} 2. Nf3 {[%emt 0:00:00]} e6 {[%emt 0:00:00]} 3. d4 {[%emt 0:00:00]} cxd4 {[%emt 0:00:00]} 4. Nxd4 {[%emt 0:00:00]} Nc6 {[%emt 0:00:00]} 5. Nc3 {[%emt 0:00:09]} Qc7 {[%emt 0:00:07]} 6. f4 {[%emt 0:00:08]} a6 {[%emt 0:01:20]} 7. Nxc6 {[%emt 0:00:10]} bxc6 {[%emt 0:01:12]} 8. e5 {[%emt 0:00:45]} d5 {[%emt 0:01:39]} 9. exd6 {[%emt 0:03:45]} Bxd6 {[%emt 0:00:44]} 10. Qf3 {[%emt 0:07:08]} Nf6 {[%emt 0:05:32]} 11. Bd3 {[%emt 0:02:56]} O-O {[%emt 0:11:36]} 12. O-O {[%emt 0:00:35]} Bb7 {[%emt 0:03:04]} 13. Bd2 {[%emt 0:03:05]} c5 {[%emt 0:02:33]} 14. Ne4 {[%emt 0:02:10]} Be7 {[%emt 0:16:10]} 15. Bc3 {[%emt 0:29:33]} c4 {[%emt 0:31:00]} 16. Nxf6+ {[%emt 0:04:55]} Bxf6 {[%emt 0:00:13]} 17. Bxh7+ {[%emt 0:00:37]} Kxh7 {[%emt 0:00:07]} 18. Qh5+ {[%emt 0:00:09]} Kg8 {[%emt 0:00:09]} 19. Bxf6 {[%emt 0:00:07]} gxf6 {[%emt 0:02:29]} 20. Qg4+ {[%emt 0:00:14]} Kh7 {[%emt 0:00:22]} 21. Qh5+ {[%emt 0:00:50]} Kg7 {[%emt 0:00:14]} 22. Qg4+ {[%emt 0:00:09]} 1/2-1/2

[Event "81st Tata Steel Tienkamp 2019"]
[Site "Wijk aan Zee"]
[Date "2019.01.20"]
[Round "3"]
[White "Mamedjarova, Zeinab"]
[Black "Rapport, Jovana"]
[Result "1/2-1/2"]
[ECO "A49"]
[WhiteElo "2311"]
[BlackElo "2375"]
[Annotator "ChessBase"]
[PlyCount "72"]
[EventDate "2019.01.12"]
[EventType "tourn"]
[EventCountry "NED"]
[SourceTitle "playchess.com"]
[Source "ChessBase"]
[SourceQuality "1"]
[TimeControl "40/6000+30:20/3000+30:900+30"]

1. d4 {[%emt 0:00:00]} Nf6 {[%emt 0:00:00]} 2. Nf3 {[%emt 0:00:00]} g6 {[%emt 0:00:08]} 3. g3 {[%emt 0:00:00]} b6 {[%emt 0:00:15]} 4. Bg2 {[%emt 0:00:00]} Bb7 {[%emt 0:00:05]} 5. O-O {[%emt 0:00:04]} Bg7 {[%emt 0:00:14]} 6. c4 {[%emt 0:00:24]} O-O {[%emt 0:00:44]} 7. Nc3 {[%emt 0:03:03]} Ne4 {[%emt 0:00:50]} 8. Qc2 {[%emt 0:00:56]} Nxc3 {[%emt 0:00:14]} 9. bxc3 {[%emt 0:03:46]} Nc6 {[%emt 0:03:55]} 10. Rd1 {[%emt 0:13:35]} Na5 {[%emt 0:02:43]} 11. c5 {[%emt 0:07:04]} d5 {[%emt 0:05:21]} 12. cxb6 {[%emt 0:11:51]} cxb6 {[%emt 0:03:21]} 13. Bf4 {[%emt 0:00:18]} Qc8 {[%emt 0:05:19]} 14. Rac1 {[%emt 0:02:24]} Rd8 {[%emt 0:05:57]} 15. h4 {[%emt 0:03:01]} Qf5 {[%emt 0:02:15]} 16. Qxf5 {[%emt 0:06:01]} gxf5 {[%emt 0:01:42]} 17. h5 {[%emt 0:00:20]} Rac8 {[%emt 0:02:25]} 18. h6 {[%emt 0:09:34]} Bh8 {[%emt 0:08:36]} 19. Bh3 {[%emt 0:01:16]} e6 {[%emt 0:00:05]} 20. Kh2 Ba6 21. Rc2 {[%emt 0:11:53]} f6 {[%emt 0:05:14]} 22. g4 {[%emt 0:10:55]} fxg4 {[%emt 0:00:33]} 23. Bxg4 {[%emt 0:00:04]} Kf7 {[%emt 0:00:05]} 24. Re1 {[%emt 0:00:27]} Rg8 {[%emt 0:03:51]} 25. Bh3 {[%emt 0:00:38]} Bb7 {[%emt 0:06:12]} 26. Nd2 {[%emt 0:02:15]} Nc6 {[%emt 0:05:57]} 27. Rcc1 {[%emt 0:01:03]} Ne7 {[%emt 0:06:44]} 28. e4 {[%emt 0:01:06]} dxe4 {[%emt 0:18:24]} 29. Nxe4 {[%emt 0:00:15]} Bxe4 {[%emt 0:00:03]} 30. Rxe4 {[%emt 0:00:02]} f5 {[%emt 0:00:04]} 31. Re2 {[%emt 0:03:29]} Bf6 {[%emt 0:01:02]} 32. Rce1 {[%emt 0:02:32]} Nd5 {[%emt 0:02:52]} 33. Bd2 {[%emt 0:10:00]} Nc7 {[%emt 0:00:54]} 34. Bf4 {[%emt 0:06:18]} Nd5 {[%emt 0:02:57]} 35. Bd2 {[%emt 0:00:02]} Nc7 {[%emt 0:07:21]} 36. Bf4 {[%emt 0:00:07]} Nd5 {[%emt 0:05:46]} 1/2-1/2

[Event "81st Tata Steel Tienkamp 2019"]
[Site "Wijk aan Zee"]
[Date "2019.01.21"]
[Round "4"]
[White "Kevlishvili, Robby"]
[Black "Vrolijk, Liam"]
[Result "1/2-1/2"]
[ECO "C67"]
[WhiteElo "2453"]
[BlackElo "2433"]
[Annotator "RC"]
[PlyCount "104"]
[EventDate "2019.01.12"]
[EventType "tourn"]
[EventCountry "NED"]
[SourceTitle "playchess.com"]
[Source "ChessBase"]
[SourceQuality "1"]
[TimeControl "40/6000+30:20/3000+30:900+30"]

1. e4 {[%emt 0:02:39]} e5 {[%emt 0:00:00]} 2. Nf3 {[%emt 0:00:05]} Nc6 {[%emt 0:00:00]} 3. Bb5 {[%emt 0:00:05]} Nf6 {[%emt 0:00:00]} 4. O-O {[%emt 0:01:22]} Nxe4 {[%emt 0:03:06]} 5. Re1 {[%emt 0:00:09]} Nd6 {[%emt 0:00:08]} 6. Nxe5 {[%emt 0:00:11]} Be7 {[%emt 0:00:08]} 7. Bf1 {[%emt 0:00:09]} Nxe5 {[%emt 0:00:10]} 8. Rxe5 {[%emt 0:00:07]} O-O {[%emt 0:00:07]} 9. Nc3 {[%emt 0:02:30]} Ne8 {[%emt 0:00:39]} 10. Nd5 {[%emt 0:00:07]} Bd6 {[%emt 0:00:06]} 11. Re1 {[%emt 0:00:05]} c6 {[%emt 0:00:06]} 12. Ne3 {[%emt 0:00:04]} Bc7 {[%emt 0:01:15]} 13. Nf5 {[%emt 0:00:56]} d5 {[%emt 0:00:09]} 14. Ne7+ {[%emt 0:00:06]} Kh8 {[%emt 0:00:06]} 15. Nxc8 {[%emt 0:00:07]} Rxc8 {[%emt 0:00:06]} 16. Qf3 {[%emt 0:01:07]} Nf6 {[%emt 0:05:02]} 17. d3 {[%emt 0:01:29]} Qd7 {[%emt 0:13:49]} 18. g3 {[%emt 0:03:02]} Rce8 {[%emt 0:02:05]} 19. Bg5 {[%emt 0:01:40]} Bd8 {[%emt 0:06:01]} 20. Bd2 {[%emt 0:03:31]} Kg8 {[%emt 0:02:18]} 21. Bb4 {[%emt 0:02:14]} Rxe1 {[%emt 0:02:39]} 22. Rxe1 {[%emt 0:00:16]} Re8 {[%emt 0:00:06]} 23. Rxe8+ {[%emt 0:02:09]} Nxe8 {[%emt 0:01:37]} 24. Qe3 {[%emt 0:00:43]} d4 {[%emt 0:06:35]} 25. Qe5 {[%emt 0:03:30]} Bc7 {[%emt 0:15:34]} 26. Qc5 {[%emt 0:00:58]} Qd6 {[%emt 0:01:40]} 27. Bh3 {[%emt 0:04:49]} a5 {[%emt 0:03:46]} 28. Qxd6 {[%emt 0:01:20]} Nxd6 {[%emt 0:00:07]} 29. Bc5 {[%emt 0:00:13]} Nb5 {[%emt 0:00:19]} 30. a4 {[%emt 0:01:08]} Bd6 {[%emt 0:00:58]} 31. Bb6 {[%emt 0:08:44]} Bc7 {[%emt 0:00:07]} 32. axb5 {[%emt 0:18:48]} Bxb6 {[%emt 0:00:08]} 33. bxc6 {[%emt 0:00:05]} bxc6 {[%emt 0:00:06]} 34. Bd7 {[%emt 0:00:06]} c5 {[%emt 0:04:37]} 35. Kg2 {[%emt 0:01:44]} Kf8 {[%emt 0:02:43]} 36. Kf3 {[%emt 0:00:06]} Ke7 {[%emt 0:00:08]} 37. Bc8 {[%emt 0:00:07]} a4 {[%emt 0:03:15]} 38. Ba6 {[%emt 0:09:26]} Ba5 {[%emt 0:00:33]} 39. Bb5 {[%emt 0:00:08]} Bd2 {[%emt 0:00:07]} 40. Bxa4 {[%emt 0:00:45]} Bc1 {[%emt 0:00:07]} 41. b4 {[%emt 0:50:49]} cxb4 {[%emt 0:50:08]} 42. Ke4 {[%emt 0:00:06]} Bb2 {[%emt 0:00:06]} 43. Ke5 {[%emt 0:00:48]} Bc3 {[%emt 0:00:34]} 44. f4 {[%emt 0:01:14]} Bb2 {[%emt 0:00:42]} 45. f5 {[%emt 0:03:34]} h6 {[%emt 0:02:04]} 46. h4 {[%emt 0:01:22]} Bc3 {[%emt 0:00:16]} 47. Bc6 {[%emt 0:01:13]} Bb2 {[%emt 0:00:46]} 48. g4 {[%emt 0:01:52]} Bc3 {[%emt 0:00:06]} 49. g5 {[%emt 0:00:49]} hxg5 {[%emt 0:00:07]} 50. hxg5 {[%emt 0:00:05]} f6+ {[%emt 0:00:13]} 51. gxf6+ {[%emt 0:00:04]} gxf6+ {[%emt 0:00:07]} 52. Kd5 {[%emt 0:00:05]} Bb2 {[%emt 0:00:06]} 1/2-1/2